lending/lending_fUSD_20250819
["ID","MTS","AMOUNT","RATE_DAILY","PERIOD"]
[380261317,1755629585917,-469.20010399,0.00023547,30]
[380261318,1755629585962,-467.23,0.00023547,30]
[380261319,1755629586009,-1163.01,0.00023547,30]
[380261320,1755629586054,-400.0,0.00023547,30]
[380261321,1755629586100,-6316.39,0.00023547,30]
[380261322,1755629586144,-2927.42,0.00023547,30]
[380261323,1755629586189,-3429.34,0.00023547,30]
[380261324,1755629586237,-400.0,0.00023547,30]
[380261325,1755629586285,-2365.07,0.00023547,30]
[380261326,1755629586335,-2100.43,0.00023547,30]
[380261327,1755629586384,-2472.13,0.00023547,30]
[380261328,1755629586435,-2445.13,0.00023547,30]
[380261329,1755629586482,-400.0,0.00023547,30]
[380261330,1755629586529,-552.77,0.00023547,30]
[380261331,1755629586576,-2010.83,0.00023547,30]
[380261332,1755629586624,-275.55,0.00023547,30]
[380261333,1755629586672,-3116.51,0.00023547,30]
[380261334,1755629586720,-500.0,0.00023548,30]
[380261335,1755629586769,-500.0,0.00023548,30]
[380261336,1755629586819,-400.0,0.00023821,30]
[380261337,1755629586867,-400.0,0.00023821,30]
[380261338,1755629586917,-863.46,0.00023821,30]
[380261339,1755629586965,-552.56,0.00023821,30]
[380261340,1755629587015,-1028.61,0.00023821,30]
[380261341,1755629587064,-400.0,0.00023821,30]
[380261342,1755629587116,-400.0,0.00023821,30]
[380261343,1755629587167,-400.0,0.00023821,30]
[380261344,1755629587218,-2378.99,0.00023821,30]
[380261345,1755629587269,-615.04,0.00023821,30]
[380261346,1755629587319,-528.72,0.00023821,30]
[380261347,1755629587372,-609.03,0.00023821,30]
[380261348,1755629587424,-1288.09,0.00023821,30]
[380261349,1755629587474,-2105.04,0.00023821,30]
[380261350,1755629587524,-582.33,0.00023821,30]
[380261351,1755629587576,-400.0,0.00023821,30]
[380261352,1755629587627,-1951.52,0.00023821,30]
[380261353,1755629587680,-549.59,0.00023821,30]
[380261354,1755629587731,-400.0,0.00023821,30]
[380261355,1755629587781,-2824.71,0.00023821,30]
[380261356,1755629587831,-2247.03,0.00023821,30]
[380261357,1755629587882,-1642.2,0.00023821,30]
[380261358,1755629587932,-1299.26,0.00023821,30]
[380261359,1755629587983,-400.0,0.00023821,30]
[380261360,1755629588034,-1430.52,0.00023821,30]
[380261361,1755629588090,-1161.22,0.00023821,30]
[380261362,1755629588157,-400.0,0.00023821,30]
[380261363,1755629588225,-1440.27,0.00023821,30]
[380261364,1755629588296,-873.42,0.00023821,30]
[380261365,1755629588371,-2138.96,0.00023821,30]
[380261366,1755629588446,-5091.06,0.00023821,30]
[380261367,1755629588493,-529.43775244,0.00023821,30]
[380261368,1755629588544,-403.04,0.00023821,30]
[380261369,1755629588589,-1319.16,0.00023821,30]
[380261370,1755629588633,-2794.97,0.00023821,30]
[380261371,1755629588678,-9767.21,0.00023821,30]
[380261372,1755629588726,-400.0,0.00023821,30]
[380261373,1755629588775,-1856.7,0.00023821,30]
[380261374,1755629588826,-400.0,0.00023821,30]
[380261375,1755629588875,-400.0,0.00023821,30]
[380261376,1755629588923,-400.0,0.00023821,30]
[380261377,1755629588971,-2336.1,0.00023821,30]
[380261378,1755629589019,-886.26,0.00023821,30]
[380261379,1755629589067,-2387.6,0.00023821,30]
[380261380,1755629589114,-400.0,0.00023821,30]
[380261381,1755629589164,-8648.05,0.00023821,30]
[380261382,1755629589212,-400.0,0.00023821,30]
[380261383,1755629589262,-613.46,0.00023821,30]
[380261384,1755629589312,-480.11326892,0.00023821,30]
[380261385,1755629589363,-533.96,0.00023821,30]
[380261386,1755629589415,-2852.26,0.00023821,30]
[380261387,1755629589469,-1104.69,0.00023821,30]
[380261388,1755629589525,-1505.36,0.00023821,30]
[380261389,1755629589578,-400.0,0.00023821,30]
[380261390,1755629589630,-3210.75,0.00023821,30]
[380261391,1755629589686,-2779.66,0.00023821,30]
[380261392,1755629589745,-400.0,0.00023821,30]
[380261393,1755629589806,-3076.17,0.00023821,30]
[380261394,1755629589864,-2284.58,0.00023821,30]
[380261395,1755629589921,-2430.08,0.00023821,30]
[380261396,1755629589973,-2134.11,0.00023821,30]
[380261397,1755629590023,-400.0,0.00023821,30]
[380261398,1755629590075,-2514.7,0.00023821,30]
[380261399,1755629590127,-400.0,0.00023821,30]
[380261400,1755629590176,-400.0,0.00023821,30]
[380261401,1755629590227,-400.0,0.00023821,30]
[380261402,1755629590280,-745.23,0.00023821,30]
[380261403,1755629590334,-2373.48,0.00023821,30]
[380261404,1755629590386,-605.17,0.00023821,30]
[380261405,1755629590689,-3448.04,0.00023821,30]
[380261406,1755629590739,-1029.54,0.00023821,30]
[380261407,1755629590788,-2357.68,0.00023821,30]
[380261408,1755629590837,-503.46,0.00023821,30]
[380261409,1755629590886,-400.0,0.00023821,30]
[380261410,1755629590934,-400.0,0.00023821,30]
[380261411,1755629590979,-404.26,0.00023821,30]
[380261412,1755629591028,-1373.57,0.00023821,30]
[380261413,1755629591074,-400.0,0.00023821,30]
[380261414,1755629591119,-2686.2,0.00023821,30]
[380261415,1755629591164,-400.0,0.00023821,30]
[380261416,1755629591213,-400.0,0.00023821,30]
[380261417,1755629591266,-1835.59,0.00023821,30]
[380261418,1755629591319,-4200.35,0.00023821,30]
[380261419,1755629591368,-1238.74,0.00023821,30]
[380261420,1755629591418,-1206.55,0.00023821,30]
[380261421,1755629591472,-2460.68,0.00023821,30]
[380261422,1755629591523,-400.0,0.00023821,30]
[380261423,1755629591574,-4651.33,0.00023821,30]
[380261424,1755629591626,-3433.97,0.00023821,30]
[380261425,1755629591676,-736.49,0.00023821,30]
[380261426,1755629591725,-400.0,0.00023821,30]
[380261427,1755629591779,-400.0,0.00023821,30]
[380261428,1755629591828,-5950.32,0.00023821,30]
[380261429,1755629591876,-1557.33,0.00023821,30]
[380261430,1755629591928,-400.0,0.00023821,30]
[380261431,1755629591977,-400.0,0.00023821,30]
[380261432,1755629592028,-2272.47,0.00023821,30]
[380261433,1755629592078,-400.0,0.00023821,30]
[380261434,1755629592132,-949.33,0.00023821,30]
[380261435,1755629592185,-400.0,0.00023821,30]
[380261436,1755629592237,-4401.83,0.00023821,30]
[380261437,1755629592289,-557.78,0.00023821,30]
[380261438,1755629592344,-618.28,0.00023821,30]
[380261439,1755629592400,-2999.81,0.00023821,30]
[380261440,1755629592452,-400.0,0.00023821,30]
[380261441,1755629592501,-400.0,0.00023821,30]
[380261442,1755629592551,-508.97,0.00023821,30]
[380261443,1755629592599,-2530.73,0.00023821,30]
[380261444,1755629592649,-3017.82,0.00023821,30]
[380261445,1755629592698,-400.0,0.00023821,30]
[380261446,1755629592749,-400.0,0.00023821,30]
[380261447,1755629592804,-13739.54,0.00023821,30]
[380261448,1755629592853,-731.53,0.00023821,30]
[380261449,1755629592901,-504.15,0.00023821,30]
[380261450,1755629592946,-5408.34,0.00023821,30]
[380261451,1755629592992,-400.0,0.00023821,30]
[380261452,1755629593042,-400.0,0.00023821,30]
[380261453,1755629593085,-2927.84,0.00023821,30]
[380261454,1755629593137,-1737.18,0.00023821,30]
[380261455,1755629593188,-400.0,0.00023821,30]
[380261456,1755629593242,-400.0,0.00023821,30]
[380261457,1755629593293,-1391.14,0.00023821,30]
[380261458,1755629593346,-400.0,0.00023821,30]
[380261459,1755629593395,-793.38,0.00023821,30]
[380261460,1755629593445,-466.8,0.00023821,30]
[380261461,1755629593497,-1988.61,0.00023821,30]
[380261462,1755629593548,-2851.15,0.00023821,30]
[380261463,1755629593599,-400.0,0.00023821,30]
[380261464,1755629593649,-5744.77,0.00023821,30]
[380261465,1755629593697,-438.95,0.00023821,30]
[380261466,1755629593745,-531.03,0.00023821,30]
[380261467,1755629593793,-400.0,0.00023821,30]
[380261468,1755629593843,-400.0,0.00023821,30]
[380261469,1755629593899,-400.0,0.00023821,30]
[380261470,1755629593949,-8313.98,0.00023821,30]
[380261471,1755629593997,-2839.12,0.00023821,30]
[380261472,1755629594046,-2228.12,0.00023821,30]
[380261473,1755629594096,-6459.08,0.00023821,30]
[380261474,1755629594146,-2982.47,0.00023821,30]
[380261475,1755629594197,-1818.87,0.00023821,30]
[380261476,1755629594248,-1141.2,0.00023821,30]
[380261477,1755629594299,-600.27,0.00023821,30]
[380261478,1755629594354,-400.0,0.00023821,30]
[380261479,1755629594409,-1484.62,0.00023821,30]
[380261480,1755629594461,-2988.69,0.00023821,30]
[380261481,1755629594509,-655.95,0.00023821,30]
[380261482,1755629594560,-2194.47,0.00023821,30]
[380261483,1755629594606,-2581.56,0.00023821,30]
[380261484,1755629594657,-465.01,0.00023821,30]
[380261485,1755629594709,-2146.97,0.00023821,30]
[380261486,1755629594762,-400.0,0.00023821,30]
[380261487,1755629594817,-2398.9,0.00023821,30]
[380261488,1755629594870,-1002.47,0.00023821,30]
[380261489,1755629594927,-5236.54,0.00023821,30]
[380261490,1755629594979,-1952.94,0.00023821,30]
[380261491,1755629595031,-400.0,0.00023821,30]
[380261492,1755629595085,-400.0,0.00023821,30]
[380261493,1755629595137,-1771.72,0.00023821,30]
[380261494,1755629595186,-400.0,0.00023821,30]
[380261495,1755629595239,-2157.93,0.00023821,30]
[380261496,1755629595290,-1269.7,0.00023821,30]
[380261497,1755629595350,-574.43,0.00023821,30]
[380261498,1755629595409,-530.22,0.00023821,30]
[380261499,1755629595462,-701.04,0.00023821,30]
[380261500,1755629595514,-400.0,0.00023821,30]
[380261501,1755629595568,-1792.5,0.00023821,30]
[380261502,1755629595618,-13853.77,0.00023821,30]
[380261503,1755629595667,-400.0,0.00023821,30]
[380261504,1755629595715,-400.0,0.00023821,30]
[380261505,1755629595771,-3509.78,0.00023821,30]
[380261506,1755629595823,-899.28,0.00023821,30]
[380261507,1755629595874,-2160.57,0.00023821,30]
[380261508,1755629595923,-5482.37,0.00023821,30]
[380261509,1755629595970,-1714.08,0.00023821,30]
[380261510,1755629596016,-1767.59,0.00023821,30]
[380261511,1755629596062,-400.0,0.00023821,30]
[380261512,1755629596108,-3518.02,0.00023821,30]
[380261513,1755629596153,-694.79,0.00023821,30]
[380261514,1755629596199,-536.43,0.00023821,30]
[380261515,1755629596249,-9944.32,0.00023821,30]
[380261516,1755629596296,-1214.14,0.00023821,30]
[380261517,1755629596351,-400.0,0.00023821,30]
[380261518,1755629596400,-2414.97,0.00023821,30]
[380261519,1755629596956,-400.0,0.00023821,30]
[380261520,1755629597003,-2913.31,0.00023821,30]
[380261521,1755629597051,-665.01,0.00023821,30]
[380261522,1755629597100,-1564.68,0.00023821,30]
[380261523,1755629597149,-400.0,0.00023821,30]
[380261524,1755629597200,-467.17,0.00023821,30]
[380261525,1755629597251,-3495.15,0.00023821,30]
[380261526,1755629597304,-5306.47,0.00023821,30]
[380261527,1755629597358,-400.0,0.00023821,30]
[380261528,1755629597408,-400.0,0.00023821,30]
[380261529,1755629597456,-1902.63,0.00023821,30]
[380261530,1755629597504,-469.54,0.00023821,30]
[380261531,1755629597554,-419.97,0.00023821,30]
[380261532,1755629597600,-457.96,0.00023821,30]
[380261533,1755629597652,-400.0,0.00023821,30]
[380261534,1755629597705,-1581.53,0.00023821,30]
[380261535,1755629597764,-400.0,0.00023821,30]
[380261536,1755629597824,-400.0,0.00023821,30]
[380261537,1755629597877,-886.22,0.00023821,30]
[380261538,1755629597930,-3147.2,0.00023821,30]
[380261539,1755629597980,-2099.26,0.00023821,30]
[380261540,1755629598033,-845.89,0.00023821,30]
[380261541,1755629598086,-1879.09,0.00023821,30]
[380261542,1755629598135,-496.54,0.00023821,30]
[380261543,1755629598188,-4723.51,0.00023821,30]
[380261544,1755629598241,-2641.07,0.00023821,30]
[380261545,1755629598291,-792.84,0.00023821,30]
[380261546,1755629598346,-1350.55,0.00023821,30]
[380261547,1755629598398,-2510.78,0.00023821,30]
[380261548,1755629598451,-1157.65,0.00023821,30]
[380261549,1755629598503,-3198.68,0.00023821,30]
[380261550,1755629598559,-515.29037913,0.00023821,30]
[380261551,1755629598606,-1686.82,0.00023821,30]
[380261552,1755629598655,-1134.14,0.00023821,30]
[380261553,1755629598703,-985.51,0.00023821,30]
[380261554,1755629598751,-963.72,0.00023821,30]
[380261555,1755629598796,-2783.51,0.00023821,30]
[380261556,1755629598846,-2992.17,0.00023821,30]
[380261557,1755629598894,-1901.27,0.00023821,30]
[380261558,1755629598941,-1793.91,0.00023821,30]
[380261559,1755629598992,-1341.44,0.00023821,30]
[380261560,1755629599045,-1021.54,0.00023821,30]
[380261561,1755629599104,-2034.19,0.00023821,30]
[380261562,1755629599157,-2475.91,0.00023821,30]
[380261563,1755629599217,-1456.34,0.00023821,30]
[380261564,1755629599275,-400.0,0.00023821,30]
[380261565,1755629599329,-400.0,0.00023821,30]
[380261566,1755629599383,-2487.45,0.00023821,30]
[380261567,1755629599436,-2304.79,0.00023821,30]
[380261568,1755629599487,-400.0,0.00023821,30]
[380261569,1755629599539,-2913.63,0.00023821,30]
[380261570,1755629599591,-1728.12,0.00023821,30]
[380261571,1755629599651,-834.55,0.00023821,30]
[380261572,1755629599702,-2028.51,0.00023821,30]
[380261573,1755629599750,-400.0,0.00023821,30]
[380261574,1755629599797,-2611.6,0.00023821,30]
[380261575,1755629599843,-400.0,0.00023821,30]
[380261576,1755629599890,-400.0,0.00023821,30]
[380261577,1755629599940,-3231.28,0.00023821,30]
[380261578,1755629599992,-4782.01,0.00023821,30]
[380261579,1755629600041,-1122.01,0.00023821,30]
[380261580,1755629600093,-777.5,0.00023821,30]
[380261581,1755629600145,-520.94,0.00023821,30]
[380261582,1755629600196,-2348.43,0.00023821,30]
[380261583,1755629600244,-2516.46,0.00023821,30]
[380261584,1755629600291,-400.0,0.00023821,30]
[380261585,1755629600339,-424.95,0.00023821,30]
[380261586,1755629600390,-1526.27,0.00023821,30]
[380261587,1755629600437,-400.0,0.00023821,30]
[380261588,1755629600482,-8524.05,0.00023821,30]
[380261589,1755629600528,-3059.67,0.00023821,30]
[380261590,1755629600575,-400.0,0.00023821,30]
[380261591,1755629600621,-666.12,0.00023821,30]
[380261592,1755629600667,-400.0,0.00023821,30]
[380261593,1755629600716,-515.84,0.00023821,30]
[380261594,1755629600763,-1507.55,0.00023821,30]
[380261595,1755629600817,-780.16,0.00023821,30]
[380261596,1755629600864,-3650.84,0.00023821,30]
[380261597,1755629600912,-969.16,0.00023821,30]
[380261598,1755629600959,-2356.88,0.00023821,30]
[380261599,1755629601008,-3890.97,0.00023821,30]
[380261600,1755629601058,-2391.14,0.00023821,30]
[380261601,1755629601107,-2014.11,0.00023821,30]
[380261602,1755629601155,-400.0,0.00023821,30]
[380261603,1755629601201,-1638.73,0.00023821,30]
[380261604,1755629601247,-1465.39,0.00023821,30]
[380261605,1755629601293,-3634.02,0.00023821,30]
[380261606,1755629601343,-1260.84,0.00023821,30]
[380261607,1755629601392,-400.0,0.00023821,30]
[380261608,1755629601436,-5708.89,0.00023821,30]
[380261609,1755629601479,-540.39,0.00023821,30]
[380261610,1755629601528,-2109.09,0.00023821,30]
[380261611,1755629601572,-2438.86,0.00023821,30]
[380261612,1755629601616,-2744.23,0.00023821,30]
[380261613,1755629601660,-1157.36,0.00023821,30]
[380261614,1755629601702,-926.19,0.00023821,30]
[380261615,1755629601744,-400.0,0.00023821,30]
[380261616,1755629601787,-555.23,0.00023821,30]
[380261617,1755629601830,-401.66,0.00023821,30]
[380261618,1755629601874,-5111.01,0.00023821,30]
[380261619,1755629601918,-498.22,0.00023821,30]
[380261620,1755629601964,-13224.65,0.00023821,30]
[380261621,1755629602008,-2294.56,0.00023821,30]
[380261622,1755629602054,-1154.07,0.00023821,30]
[380261623,1755629602100,-467.23,0.00023821,30]
[380261624,1755629602148,-1163.01,0.00023821,30]
[380261625,1755629602194,-400.0,0.00023821,30]
[380261626,1755629602243,-6316.39,0.00023821,30]
[380261627,1755629602295,-2927.42,0.00023821,30]
[380261628,1755629602345,-400.0,0.00023821,30]
[380261629,1755629602394,-3429.34,0.00023821,30]
[380261630,1755629602444,-2365.07,0.00023821,30]
[380261631,1755629602491,-2100.43,0.00023821,30]
[380261632,1755629602538,-2472.13,0.00023821,30]
[380261633,1755629603027,-2445.13,0.00023821,30]
[380261634,1755629603126,-400.0,0.00023821,30]
[380261635,1755629603177,-552.77,0.00023821,30]
[380261636,1755629603228,-2010.83,0.00023821,30]
[380261637,1755629603282,-3116.51,0.00023821,30]
[380261638,1755629603341,-500.0,0.00023822,30]
[380261639,1755629603395,-500.0,0.00023822,30]
[380261640,1755629603446,-400.0,0.00024095,30]
[380261641,1755629603496,-400.0,0.00024095,30]
[380261642,1755629603545,-575.38,0.00024095,30]
[380261643,1755629603596,-2448.43,0.00024095,30]
[380261644,1755629603646,-196.43649964,0.00024095,30]
[380261645,1755629603694,-400.0,0.00024095,30]
[380261646,1755629603743,-590.83,0.00024095,30]
[380261647,1755629603792,-2283.21,0.00024095,30]
[380261648,1755629603842,-1666.38,0.00024095,30]
[380261649,1755629603890,-1917.1,0.00024095,30]
[380261650,1755629603937,-400.0,0.00024095,30]
[380261651,1755629603985,-400.0,0.00024095,30]
[380261652,1755629604035,-1241.13,0.00024095,30]
[380261653,1755629604083,-2614.06,0.00024095,30]
[380261654,1755629604128,-3258.07,0.00024095,30]
[380261655,1755629604175,-2570.46,0.00024095,30]
[380261656,1755629604225,-1183.82,0.00024095,30]
[380261657,1755629604277,-2155.5,0.00024095,30]
[380261658,1755629604328,-1264.59,0.00024095,30]
[380261659,1755629604384,-1001.1,0.00024095,30]
[380261660,1755629604436,-400.0,0.00024095,30]
[380261661,1755629604490,-1117.83,0.00024095,30]
[380261662,1755629604543,-795.22,0.00024095,30]
[380261663,1755629604606,-1338.87,0.00024095,30]
[380261664,1755629604658,-587.48,0.00024095,30]
[380261665,1755629604706,-2323.63,0.00024095,30]
[380261666,1755629604755,-400.0,0.00024095,30]
[380261667,1755629604804,-400.0,0.00024095,30]
[380261668,1755629604852,-2517.35,0.00024095,30]
[380261669,1755629604901,-2662.98,0.00024095,30]
[380261670,1755629604955,-1544.99,0.00024095,30]
[380261671,1755629605008,-646.84,0.00024095,30]
[380261672,1755629605065,-400.0,0.00024095,30]
[380261673,1755629605119,-764.98,0.00024095,30]
[380261674,1755629605171,-728.66,0.00024095,30]
[380261675,1755629605223,-2531.47,0.00024095,30]
[380261676,1755629605279,-776.93,0.00024095,30]
[380261677,1755629605334,-400.0,0.00024095,30]
[380261678,1755629605397,-2693.83,0.00024095,30]
[380261679,1755629605457,-2225.65,0.00024095,30]
[380261680,1755629605508,-516.32,0.00024095,30]
[380261681,1755629605561,-463.45,0.00024095,30]
[380261682,1755629605612,-400.0,0.00024095,30]
[380261683,1755629605662,-400.0,0.00024095,30]
[380261684,1755629605718,-400.0,0.00024095,30]
[380261685,1755629605770,-400.0,0.00024095,30]
[380261686,1755629605820,-400.0,0.00024095,30]
[380261687,1755629605869,-1875.41,0.00024095,30]
[380261688,1755629605915,-810.62,0.00024095,30]
[380261689,1755629605966,-656.82,0.00024095,30]
[380261690,1755629606014,-2010.66,0.00024095,30]
[380261691,1755629606070,-3273.57,0.00024095,30]
[380261692,1755629606123,-400.0,0.00024095,30]
[380261693,1755629606173,-724.21,0.00024095,30]
[380261694,1755629606228,-400.0,0.00024095,30]
[380261695,1755629606292,-432.79,0.00024095,30]
[380261696,1755629606356,-1201.82,0.00024095,30]
[380261697,1755629606410,-552.27,0.00024095,30]
[380261698,1755629606461,-400.0,0.00024095,30]
[380261699,1755629606511,-2234.63,0.00024095,30]
[380261700,1755629606565,-3387.39,0.00024095,30]
[380261701,1755629606619,-3242.02,0.00024095,30]
[380261702,1755629606670,-3031.42,0.00024095,30]
[380261703,1755629606727,-4506.15,0.00024095,30]
[380261704,1755629606782,-400.0,0.00024095,30]
[380261705,1755629606834,-622.38,0.00024095,30]
[380261706,1755629606889,-2268.72,0.00024095,30]
[380261707,1755629606942,-2569.35,0.00024095,30]
[380261708,1755629606995,-400.0,0.00024095,30]
[380261709,1755629607048,-400.0,0.00024095,30]
[380261710,1755629607101,-863.46,0.00024095,30]
[380261711,1755629607153,-552.56,0.00024095,30]
[380261712,1755629607206,-1028.61,0.00024095,30]
[380261713,1755629607258,-400.0,0.00024095,30]
[380261714,1755629607312,-400.0,0.00024095,30]
[380261715,1755629607364,-400.0,0.00024095,30]
[380261716,1755629607421,-2378.99,0.00024095,30]
[380261717,1755629607479,-615.04,0.00024095,30]
[380261718,1755629607536,-609.03,0.00024095,30]
[380261719,1755629607591,-528.72,0.00024095,30]
[380261720,1755629607645,-1288.09,0.00024095,30]
[380261721,1755629607698,-2105.04,0.00024095,30]
[380261722,1755629607754,-582.33,0.00024095,30]
[380261723,1755629607807,-1951.52,0.00024095,30]
[380261724,1755629607859,-549.59,0.00024095,30]
[380261725,1755629607912,-400.0,0.00024095,30]
[380261726,1755629607964,-2824.71,0.00024095,30]
[380261727,1755629608015,-2247.03,0.00024095,30]
[380261728,1755629608067,-1642.2,0.00024095,30]
[380261729,1755629608120,-1299.26,0.00024095,30]
[380261730,1755629608169,-400.0,0.00024095,30]
[380261731,1755629608219,-1430.52,0.00024095,30]
[380261732,1755629608273,-1161.22,0.00024095,30]
[380261733,1755629608338,-400.0,0.00024095,30]
[380261734,1755629608389,-1440.27,0.00024095,30]
[380261735,1755629608441,-873.42,0.00024095,30]
[380261736,1755629608488,-2138.96,0.00024095,30]
[380261737,1755629608536,-5091.06,0.00024095,30]
[380261738,1755629608584,-403.04,0.00024095,30]
[380261739,1755629608633,-1319.16,0.00024095,30]
[380261740,1755629608680,-2794.97,0.00024095,30]
[380261741,1755629608728,-9767.21,0.00024095,30]
[380261742,1755629608783,-400.0,0.00024095,30]
[380261743,1755629608835,-1856.7,0.00024095,30]
[380261744,1755629608885,-400.0,0.00024095,30]
[380261745,1755629608935,-400.0,0.00024095,30]
[380261746,1755629608984,-400.0,0.00024095,30]
[380261747,1755629609036,-2336.1,0.00024095,30]
[380261748,1755629609535,-400.0,0.00024095,30]
[380261749,1755629609584,-886.26,0.00024095,30]
[380261750,1755629609629,-2387.6,0.00024095,30]
[380261751,1755629609675,-400.0,0.00024095,30]
[380261752,1755629609725,-8648.05,0.00024095,30]
[380261753,1755629609772,-400.0,0.00024095,30]
[380261754,1755629609823,-613.46,0.00024095,30]
[380261755,1755629609871,-533.96,0.00024095,30]
[380261756,1755629609920,-2852.26,0.00024095,30]
[380261757,1755629609972,-1104.69,0.00024095,30]
[380261758,1755629610019,-1505.36,0.00024095,30]
[380261759,1755629610072,-400.0,0.00024095,30]
[380261760,1755629610121,-3210.75,0.00024095,30]
[380261761,1755629610171,-2779.66,0.00024095,30]
[380261762,1755629610221,-400.0,0.00024095,30]
[380261763,1755629610268,-3076.17,0.00024095,30]
[380261764,1755629610318,-2284.58,0.00024095,30]
[380261765,1755629610366,-2430.08,0.00024095,30]
[380261766,1755629610417,-2134.11,0.00024095,30]
[380261767,1755629610468,-400.0,0.00024095,30]
[380261768,1755629610515,-2514.7,0.00024095,30]
[380261769,1755629610559,-400.0,0.00024095,30]
[380261770,1755629610603,-400.0,0.00024095,30]
[380261771,1755629610647,-400.0,0.00024095,30]
[380261772,1755629610695,-745.23,0.00024095,30]
[380261773,1755629610740,-2373.48,0.00024095,30]
[380261774,1755629610788,-605.17,0.00024095,30]
[380261775,1755629610835,-3448.04,0.00024095,30]
[380261776,1755629610882,-1029.54,0.00024095,30]
[380261777,1755629610923,-2357.68,0.00024095,30]
[380261778,1755629610967,-503.46,0.00024095,30]
[380261779,1755629611010,-400.0,0.00024095,30]
[380261780,1755629611052,-400.0,0.00024095,30]
[380261781,1755629611098,-404.26,0.00024095,30]
[380261782,1755629611145,-1373.57,0.00024095,30]
[380261783,1755629611189,-400.0,0.00024095,30]
[380261784,1755629611235,-2686.2,0.00024095,30]
[380261785,1755629611276,-400.0,0.00024095,30]
[380261786,1755629611319,-400.0,0.00024095,30]
[380261787,1755629611366,-1835.59,0.00024095,30]
[380261788,1755629611409,-1238.74,0.00024095,30]
[380261789,1755629611455,-4200.35,0.00024095,30]
[380261790,1755629611498,-1206.55,0.00024095,30]
[380261791,1755629611540,-2460.68,0.00024095,30]
[380261792,1755629611582,-400.0,0.00024095,30]
[380261793,1755629611625,-4651.33,0.00024095,30]
[380261794,1755629611665,-3433.97,0.00024095,30]
[380261795,1755629611706,-736.49,0.00024095,30]
[380261796,1755629611747,-400.0,0.00024095,30]
[380261797,1755629611789,-400.0,0.00024095,30]
[380261798,1755629611830,-5950.32,0.00024095,30]
[380261799,1755629611870,-1557.33,0.00024095,30]
[380261800,1755629611911,-400.0,0.00024095,30]
[380261801,1755629611952,-400.0,0.00024095,30]
[380261802,1755629611992,-2272.47,0.00024095,30]
[380261803,1755629612039,-400.0,0.00024095,30]
[380261804,1755629612090,-949.33,0.00024095,30]
[380261805,1755629612142,-400.0,0.00024095,30]
[380261806,1755629612193,-557.78,0.00024095,30]
[380261807,1755629612244,-4401.83,0.00024095,30]
[380261808,1755629612293,-618.28,0.00024095,30]
[380261809,1755629612344,-2999.81,0.00024095,30]
[380261810,1755629612393,-430.84115672,0.00024095,30]
[380261811,1755629612443,-400.0,0.00024095,30]
[380261812,1755629612490,-508.97,0.00024095,30]
[380261813,1755629612536,-2530.73,0.00024095,30]
[380261814,1755629612583,-3017.82,0.00024095,30]
[380261815,1755629612627,-402.5671858,0.00024095,30]
[380261816,1755629612673,-400.0,0.00024095,30]